bitfinex/quotes_BTCUSD_20241010
["timestamp","ask_amount","ask_price","bid_price","bid_amount"]
[1728603387291,0.0159537,60300.0,60299.0,0.149256]
[1728603388725,0.0179537,60300.0,60299.0,0.149256]
[1728603391267,0.0179537,60300.0,60296.0,0.0808]
[1728603391488,0.0179537,60300.0,60297.0,0.14926]
[1728603391717,0.149266,60295.0,60292.0,0.0753]
[1728603391931,0.27416048,60293.0,60292.0,0.0753]
[1728603392144,0.27416048,60293.0,60291.0,0.001632]
[1728603392145,0.17461388,60293.0,60291.0,0.001632]
[1728603392350,0.18656232,60293.0,60291.0,0.001632]
[1728603392681,0.21142227,60293.0,60291.0,0.001632]
[1728603393112,0.04972191,60292.0,60291.0,0.001632]
[1728603393343,0.21453208,60292.0,60291.0,0.001632]
[1728603393554,0.07720697,60292.0,60291.0,0.001632]
[1728603393794,0.07720697,60292.0,60291.0,0.007632]
[1728603394016,0.07720697,60292.0,60291.0,0.156908]
[1728603394222,0.07720697,60292.0,60291.0,0.150908]
[1728603395060,0.08220697,60292.0,60291.0,0.150908]
[1728603395278,0.08219966,60292.0,60291.0,0.150908]
[1728603395927,0.08219966,60292.0,60291.0,0.001632]
[1728603396138,0.08519966,60292.0,60291.0,0.001632]
[1728603398576,0.03548391,60292.0,60291.0,0.001632]
[1728603401954,0.0354821,60292.0,60291.0,0.001632]
[1728603403878,0.0362981,60292.0,60291.0,0.001632]
[1728603404674,0.0362981,60292.0,60291.0,0.150908]
[1728603405488,0.0362981,60292.0,60291.0,0.001632]
[1728603408582,0.1855711,60292.0,60291.0,0.001632]
[1728603408988,0.23527418,60292.0,60291.0,0.001632]
[1728603409406,0.23527762,60292.0,60291.0,0.001632]
[1728603410039,0.08600462,60292.0,60291.0,0.001632]
[1728603412580,0.23527762,60292.0,60291.0,0.001632]
[1728603413222,0.23528501,60292.0,60291.0,0.001632]
[1728603413470,0.1855711,60292.0,60291.0,0.001632]
[1728603413680,0.0362981,60292.0,60291.0,0.001632]
[1728603414093,0.11085789,60292.0,60291.0,0.001632]
[1728603414360,0.0362981,60292.0,60291.0,0.001632]
[1728603414941,0.11085789,60292.0,60291.0,0.001632]
[1728603415147,0.09532368,60292.0,60291.0,0.001632]
[1728603415378,0.11085834,60292.0,60291.0,0.001632]
[1728603415958,0.28016764,60292.0,60291.0,0.001632]
[1728603416325,0.42944064,60292.0,60291.0,0.001632]
[1728603416738,0.40459582,60292.0,60291.0,0.001632]
[1728603417157,0.35488085,60292.0,60291.0,0.001632]
[1728603417496,0.42944064,60292.0,60291.0,0.001632]
[1728603417919,0.41390598,60292.0,60291.0,0.001632]
[1728603418116,0.42944614,60292.0,60291.0,0.001632]
[1728603418497,0.35488635,60292.0,60291.0,0.001632]
[1728603419665,0.42945423,60292.0,60291.0,0.001632]
[1728603419838,0.4045963,60292.0,60291.0,0.001632]
[1728603420258,0.18557705,60292.0,60291.0,0.001632]
[1728603420427,0.23528735,60292.0,60291.0,0.001632]
[1728603420630,0.18557705,60292.0,60291.0,0.001632]
[1728603420843,0.03630405,60292.0,60291.0,0.001632]
[1728603421037,0.24460349,60292.0,60291.0,0.001632]
[1728603421218,0.26015444,60292.0,60291.0,0.001632]
[1728603421847,0.11088144,60292.0,60291.0,0.001632]
[1728603422400,0.03631484,60292.0,60291.0,0.001632]
[1728603423677,0.03631484,60292.0,60291.0,0.150908]
[1728603424006,0.03631484,60292.0,60291.0,0.001632]
[1728603424656,0.08602112,60292.0,60291.0,0.001632]
[1728603425304,0.08602112,60292.0,60291.0,0.080132]
[1728603425520,0.08602112,60292.0,60291.0,0.229408]
[1728603425743,0.03631484,60292.0,60291.0,0.229408]
[1728603426359,0.02436695,60292.0,60291.0,0.229408]
[1728603426561,0.03630957,60292.0,60291.0,0.229408]
[1728603427716,0.02075862,60292.0,60291.0,0.229408]
[1728603427937,0.02075862,60292.0,60291.0,0.45601453]
[1728603427938,0.03631499,60292.0,60291.0,0.45601453]
[1728603428157,0.03631499,60292.0,60291.0,0.45269748]
[1728603428376,0.02437237,60292.0,60291.0,0.45269748]
[1728603429025,0.01937237,60292.0,60291.0,0.45269748]
[1728603429666,0.01637237,60292.0,60291.0,0.45269748]
[1728603429882,0.01637237,60292.0,60291.0,0.45669748]
[1728603431175,0.0163568,60292.0,60291.0,0.45669748]
[1728603434319,0.0163568,60292.0,60291.0,0.331808]
[1728603434527,0.0163478,60292.0,60291.0,0.331808]
[1728603434732,0.0282971,60292.0,60291.0,0.331808]
[1728603435284,0.0282971,60292.0,60291.0,0.238408]
[1728603435683,0.0282971,60292.0,60291.0,0.233408]
[1728603435817,0.0282971,60292.0,60291.0,0.229408]
[1728603436041,0.0282971,60292.0,60291.0,0.083132]
[1728603436249,0.0282971,60292.0,60291.0,0.232408]
[1728603436450,0.0282971,60292.0,60291.0,0.229408]
[1728603436857,0.0282971,60292.0,60291.0,0.231408]
[1728603437256,0.0282971,60292.0,60291.0,0.229408]
[1728603437611,0.0292971,60292.0,60291.0,0.229408]
[1728603438220,0.0292971,60292.0,60291.0,0.080132]
[1728603438424,0.0322971,60292.0,60291.0,0.229408]
[1728603441649,0.0292971,60292.0,60291.0,0.229408]
[1728603442093,0.0322971,60292.0,60291.0,0.229408]
[1728603442430,0.0342971,60292.0,60291.0,0.229408]
[1728603443698,0.0342971,60292.0,60291.0,0.729408]
[1728603444104,0.0342971,60292.0,60291.0,0.580132]
[1728603444541,0.03429892,60292.0,60291.0,0.729408]
[1728603447650,0.0187653,60292.0,60291.0,0.729408]
[1728603447861,0.03430204,60292.0,60291.0,0.729408]
[1728603450946,0.0187653,60292.0,60291.0,0.729408]
[1728603451156,0.03430547,60292.0,60291.0,0.729408]
[1728603454380,0.0187653,60292.0,60291.0,0.729408]
[1728603454610,0.03431025,60292.0,60291.0,0.729408]
[1728603455480,0.03431025,60292.0,60291.0,0.820408]
[1728603456085,0.03431025,60292.0,60291.0,0.825408]
[1728603456289,0.02236095,60292.0,60291.0,0.825408]
[1728603456668,0.01836095,60292.0,60291.0,0.825408]
[1728603457066,0.01936095,60292.0,60291.0,0.825408]
[1728603457327,0.01636095,60292.0,60291.0,0.825408]
[1728603457812,0.01736074,60292.0,60291.0,0.825408]
[1728603459121,0.01836074,60292.0,60291.0,0.833408]
[1728603461059,0.01835764,60292.0,60291.0,0.833408]
[1728603463665,0.01835764,60292.0,60291.0,1.0027173]
[1728603464394,0.01835505,60292.0,60291.0,1.0027173]
[1728603465462,0.002816,60292.0,60291.0,1.0027173]
[1728603472576,0.002816,60292.0,60291.0,0.833408]
[1728603475003,0.002816,60292.0,60291.0,0.83589613]
[1728603476685,0.002816,60292.0,60291.0,0.833408]
[1728603476942,0.002816,60292.0,60291.0,0.83589613]
[1728603477800,0.002816,60292.0,60291.0,0.509632]
[1728603477801,0.01834908,60292.0,60291.0,0.509632]
[1728603478321,0.01476845,60292.0,60291.0,0.658908]
[1728603478519,0.02930294,60292.0,60291.0,0.650908]
[1728603478931,0.02930294,60292.0,60291.0,0.658908]
[1728603479384,0.02830294,60292.0,60291.0,0.650908]
[1728603479809,0.03130294,60292.0,60291.0,0.650908]
[1728603480437,0.03230294,60292.0,60291.0,0.650908]
[1728603481093,0.02930294,60292.0,60291.0,0.650908]
[1728603481303,0.03330294,60292.0,60291.0,0.650908]
[1728603481795,0.03230294,60292.0,60291.0,0.650908]
[1728603481999,0.03330294,60292.0,60291.0,0.650908]
[1728603482481,0.03230294,60292.0,60291.0,0.650908]
[1728603482700,0.03330294,60292.0,60291.0,0.650908]
[1728603483167,0.01776845,60292.0,60291.0,0.650908]
[1728603483454,0.03330355,60292.0,60291.0,0.650908]
[1728603483659,0.03230355,60292.0,60291.0,0.650908]
[1728603484136,0.02830355,60292.0,60291.0,0.650908]
[1728603484833,0.02830355,60292.0,60291.0,0.726508]
[1728603485096,0.0163511,60292.0,60291.0,0.734508]
[1728603485540,0.0173511,60292.0,60291.0,0.731508]
[1728603485791,0.0163511,60292.0,60291.0,0.733508]
[1728603486296,0.0163511,60292.0,60291.0,0.731508]
[1728603486528,0.01635096,60292.0,60291.0,0.734508]
[1728603487873,0.01635096,60292.0,60291.0,0.731508]
[1728603488076,0.01835096,60292.0,60291.0,0.738508]
[1728603488759,0.01635096,60292.0,60291.0,0.731508]
[1728603488964,0.01735096,60292.0,60291.0,0.737508]
[1728603489788,0.01735111,60292.0,60291.0,0.737508]
[1728603496508,0.001816,60292.0,60291.0,0.737508]
[1728603496717,0.01734862,60292.0,60291.0,0.737508]
[1728603497462,0.02929682,60292.0,60291.0,0.737508]
[1728603497869,0.02929682,60292.0,60291.0,0.732508]
[1728603498075,0.12149682,60292.0,60291.0,0.507632]
[1728603498286,0.2463863,60292.0,60291.0,0.507632]
[1728603498495,0.3956593,60292.0,60291.0,0.507632]
[1728603498970,0.3204741,60292.0,60291.0,0.507632]
[1728603499178,0.1702011,60292.0,60291.0,0.501632]
[1728603500034,0.15766848,60292.0,60291.0,0.501632]
[1728603500259,0.17020314,60292.0,60291.0,0.501632]
[1728603500879,0.32347614,60292.0,60291.0,0.501632]
[1728603501098,0.33047614,60292.0,60291.0,0.501632]
[1728603501527,0.45536562,60292.0,60291.0,0.501632]
[1728603501742,0.57497064,60292.0,60291.0,0.501632]
[1728603501954,0.71452707,60292.0,60291.0,0.501632]
[1728603502438,0.92352347,60292.0,60291.0,0.501632]
[1728603502660,1.04778419,60292.0,60291.0,0.501632]
[1728603502886,1.23109817,60292.0,60291.0,0.501632]
[1728603503313,1.27889098,60292.0,60291.0,0.501632]
[1728603503521,1.28489098,60292.0,60291.0,0.501632]
[1728603503738,1.48408914,60292.0,60291.0,0.501632]
[1728603503967,1.49109507,60292.0,60291.0,0.501632]
[1728603504184,1.08863089,60292.0,60291.0,0.501632]
[1728603504400,0.9355294,60292.0,60291.0,0.501632]
[1728603504605,0.9495294,60292.0,60291.0,0.501632]
[1728603504812,0.9515294,60292.0,60291.0,0.001632]
[1728603505024,0.9495294,60292.0,60291.0,0.001632]
[1728603505258,0.9355294,60292.0,60291.0,0.001632]
[1728603505476,0.9495294,60292.0,60291.0,0.001632]
[1728603505693,0.949532,60292.0,60291.0,0.001632]
[1728603506375,0.963532,60292.0,60291.0,0.001632]
[1728603506563,0.949532,60292.0,60291.0,0.001632]
[1728603506774,0.963532,60292.0,60291.0,0.001632]
[1728603507411,0.949532,60292.0,60291.0,0.001632]
[1728603507628,0.93199141,60292.0,60291.0,0.001632]
[1728603507844,0.96154242,60292.0,60291.0,0.001632]
[1728603508283,0.76598699,60292.0,60291.0,0.001632]
[1728603508500,0.77798699,60292.0,60291.0,0.001632]
[1728603509124,0.77998699,60292.0,60291.0,0.001632]
[1728603510490,0.77798699,60292.0,60291.0,0.001632]
[1728603510970,0.71298699,60292.0,60291.0,0.001632]
[1728603511170,0.62078699,60292.0,60291.0,0.001632]
[1728603512408,0.49589751,60292.0,60291.0,0.001632]
[1728603512620,0.17731521,60292.0,60291.0,0.001632]
[1728603513027,0.2880372,60292.0,60291.0,0.001632]
[1728603513647,0.1387642,60292.0,60291.0,0.001632]
[1728603513856,0.2880372,60292.0,60291.0,0.001632]
[1728603514068,0.1387642,60292.0,60291.0,0.001632]
[1728603515119,0.1387642,60292.0,60291.0,0.253208]
[1728603515620,0.026816,60292.0,60291.0,0.253208]
[1728603516118,0.012816,60292.0,60291.0,0.253208]
[1728603516872,0.000816,60292.0,60291.0,0.253208]
[1728603517130,0.004816,60292.0,60291.0,0.001632]
[1728603517580,0.0127615,60292.0,60291.0,0.001632]
[1728603517909,0.0127615,60292.0,60291.0,0.004632]
[1728603518363,0.0127615,60292.0,60291.0,0.001632]
[1728603518850,0.0127615,60292.0,60291.0,0.002632]
[1728603519051,0.0127615,60292.0,60291.0,0.001632]
[1728603519405,0.0157615,60292.0,60291.0,0.001632]
[1728603519626,0.0127615,60292.0,60291.0,0.001632]
[1728603519777,0.0167615,60292.0,60291.0,0.001632]
[1728603520187,0.0137615,60292.0,60291.0,0.001632]
[1728603520387,0.0207615,60292.0,60291.0,0.001632]
[1728603520603,0.3383438,60292.0,60291.0,0.001632]
[1728603521050,0.3423438,60292.0,60291.0,0.001632]
[1728603521875,0.3653438,60292.0,60291.0,0.001632]
[1728603522867,0.67314801,60292.0,60291.0,0.001632]
[1728603523274,0.54886114,60292.0,60291.0,0.001632]
[1728603523474,0.67315566,60292.0,60291.0,0.001632]
[1728603524115,0.54886114,60292.0,60291.0,0.001632]
[1728603524650,0.64886114,60292.0,60291.0,0.001632]
[1728603526783,0.4653438,60292.0,60291.0,0.001632]
[1728603527033,0.64867104,60292.0,60291.0,0.001632]
[1728603527512,0.77281403,60292.0,60291.0,0.001632]
[1728603529360,0.77481403,60292.0,60291.0,0.001632]
[1728603529768,0.65067104,60292.0,60291.0,0.001632]
[1728603529980,0.64867104,60292.0,60291.0,0.001632]
[1728603530592,0.74794613,60292.0,60291.0,0.001632]
[1728603531033,0.93346052,60292.0,60291.0,0.001632]
[1728603531456,0.93546052,60292.0,60291.0,0.001632]
[1728603531677,0.80857104,60292.0,60291.0,0.001632]
[1728603532368,0.80157104,60292.0,60291.0,0.001632]
[1728603532609,0.81557104,60292.0,60291.0,0.001632]
[1728603532861,0.79757104,60292.0,60291.0,0.001632]
[1728603533093,0.82357104,60292.0,60291.0,0.001632]
[1728603533326,0.75857104,60292.0,60291.0,0.001632]
[1728603533538,0.74657104,60292.0,60291.0,0.001632]
[1728603534008,0.76057104,60292.0,60291.0,0.001632]
[1728603534527,0.76257104,60292.0,60291.0,0.001632]
[1728603537565,0.9115608,60292.0,60291.0,0.001632]
[1728603538423,0.76257104,60292.0,60291.0,0.001632]
[1728603538635,0.9115608,60292.0,60291.0,0.001632]
[1728603539526,0.76257104,60292.0,60291.0,0.001632]
[1728603540177,0.9115608,60292.0,60291.0,0.001632]
[1728603540853,0.91181191,60292.0,60291.0,0.001632]
[1728603542553,0.90981191,60292.0,60291.0,0.001632]
[1728603542756,0.76270957,60292.0,60291.0,0.001632]
[1728603542984,1.05704175,60292.0,60291.0,0.001632]
[1728603543206,0.93215227,60292.0,60291.0,0.001632]
[1728603543632,0.88759905,60292.0,60291.0,0.001632]
[1728603544683,0.76270957,60292.0,60291.0,0.001632]
[1728603544896,0.82770957,60292.0,60291.0,0.001632]
[1728603545105,0.95259905,60292.0,60291.0,0.001632]
[1728603545324,0.172308,60278.0,60272.0,0.24974609]
[1728603545572,0.27420948,60273.0,60272.0,0.24974609]
[1728603545783,0.51807881,60273.0,60272.0,0.24974609]
[1728603546011,0.149323,60272.0,60271.0,0.0822]
[1728603546218,0.39319752,60272.0,60271.0,0.0822]
[1728603546423,0.36832581,60272.0,60271.0,0.0822]
[1728603546637,0.38024096,60272.0,60271.0,0.0822]
[1728603547502,0.33054745,60272.0,60271.0,0.0822]
[1728603548120,0.34754745,60272.0,60271.0,0.0822]
[1728603551171,0.34754745,60272.0,60271.0,0.083832]
[1728603567268,0.02891515,60272.0,60271.0,0.331057]
[1728603567513,0.02891515,60272.0,60271.0,0.336057]
[1728603567716,0.017,60272.0,60271.0,0.336057]
[1728603568358,0.01,60272.0,60271.0,0.336057]
[1728603568560,0.04966145,60281.0,60279.0,0.0822]
[1728603568816,0.44870554,60282.0,60280.0,0.0979]
[1728603569017,0.21897075,60282.0,60280.0,0.0979]
[1728603569435,0.04966145,60281.0,60280.0,0.0979]
[1728603570529,0.05366145,60281.0,60280.0,0.0979]
[1728603570983,0.06166145,60281.0,60280.0,0.0979]
[1728603571213,0.05766145,60281.0,60280.0,0.0979]
[1728603571425,0.06266145,60281.0,60280.0,0.0979]
[1728603572704,0.21196145,60281.0,60280.0,0.0979]
[1728603572929,0.23679218,60281.0,60280.0,0.0979]
[1728603574302,0.1623,60281.0,60280.0,0.0979]
[1728603574706,0.23679218,60281.0,60280.0,0.0979]
[1728603577304,0.23683959,60281.0,60280.0,0.0979]
[1728603578442,0.24874752,60281.0,60280.0,0.0979]
[1728603578827,0.09944752,60281.0,60280.0,0.0979]
[1728603579026,0.24874752,60281.0,60280.0,0.0979]
[1728603579214,0.09944752,60281.0,60280.0,0.0979]
[1728603579617,0.24874752,60281.0,60280.0,0.0979]
[1728603581164,0.35767614,60281.0,60280.0,0.0979]
[1728603581580,0.45706226,60281.0,60280.0,0.0979]
[1728603581799,0.45709337,60281.0,60280.0,0.0979]
[1728603586423,0.45709337,60281.0,60280.0,0.099532]
[1728603589405,0.35768545,60281.0,60280.0,0.099532]
[1728603590726,0.45713537,60281.0,60280.0,0.099532]
[1728603591718,0.45720549,60281.0,60280.0,0.099532]
[1728603594103,0.35775817,60281.0,60280.0,0.099532]
[1728603594317,0.45720753,60281.0,60280.0,0.099532]
[1728603595031,0.35775817,60281.0,60280.0,0.099532]
[1728603595234,0.45720985,60281.0,60280.0,0.099532]
[1728603596141,0.45722154,60281.0,60280.0,0.099532]
[1728603597197,0.45722507,60281.0,60280.0,0.099532]
[1728603598101,0.45722507,60281.0,60280.0,0.001632]
[1728603600649,0.45726246,60281.0,60280.0,0.001632]
[1728603603524,0.35779512,60281.0,60280.0,0.001632]
[1728603603940,0.20849512,60281.0,60280.0,0.001632]
[1728603604388,0.02490793,60281.0,60280.0,0.45452448]
[1728603604607,0.013,60281.0,60280.0,0.45452448]
[1728603605023,0.24974609,60287.0,60286.0,0.149288]
[1728603605232,0.24974609,60287.0,60286.0,0.323688]
[1728603605458,0.05055298,60291.0,60287.0,0.0791]
[1728603605898,0.05055298,60291.0,60286.0,0.0953]
[1728603606121,0.05055298,60291.0,60288.0,0.005]
[1728603606380,0.000816,60291.0,60289.0,0.0791]
[1728603606625,0.05055298,60291.0,60289.0,0.0791]
[1728603606868,0.05355298,60291.0,60289.0,0.0791]
[1728603607822,0.05355298,60291.0,60289.0,0.0801]
[1728603608078,0.05055298,60291.0,60289.0,0.0801]
[1728603608344,0.01191347,60290.0,60289.0,0.527941]
[1728603608592,0.01191347,60290.0,60289.0,0.626641]
[1728603609058,0.01191347,60290.0,60289.0,0.32808]
[1728603609539,0.01391347,60290.0,60289.0,0.32808]
[1728603610036,0.01391347,60290.0,60289.0,0.32708]
[1728603610535,0.01391347,60290.0,60289.0,0.32908]
[1728603611044,0.002,60290.0,60289.0,0.32908]
[1728603611280,0.01392128,60290.0,60289.0,0.32908]
[1728603611764,0.002,60290.0,60289.0,0.32908]
[1728603615340,0.002,60290.0,60289.0,0.45396948]
[1728603617713,0.002,60290.0,60289.0,0.32908]
[1728603619756,0.002,60290.0,60289.0,0.1748]
[1728603619984,0.002,60290.0,60289.0,0.0811]
[1728603620225,0.0139382,60290.0,60289.0,0.0811]
[1728603620477,0.45741498,60290.0,60289.0,0.002]
[1728603620723,0.58230446,60290.0,60289.0,0.002]
[1728603620930,0.67870446,60290.0,60289.0,0.002]
[1728603621147,0.55381498,60290.0,60289.0,0.002]
[1728603621577,0.60343517,60290.0,60289.0,0.002]
[1728603621792,0.60143517,60290.0,60289.0,0.002]
[1728603622221,0.61043517,60290.0,60289.0,0.002]
[1728603622444,0.60143517,60290.0,60289.0,0.003632]
[1728603622672,0.6144321,60290.0,60289.0,0.001632]
[1728603623116,0.6204321,60290.0,60289.0,0.001632]
[1728603623611,0.6144321,60290.0,60289.0,0.001632]
[1728603624045,0.6234321,60290.0,60289.0,0.001632]
[1728603624265,0.6104321,60290.0,60289.0,0.001632]
[1728603624480,0.5170321,60290.0,60289.0,0.001632]
[1728603626006,0.5260321,60290.0,60289.0,0.001632]
[1728603626445,0.47641498,60290.0,60289.0,0.001632]
[1728603629548,0.52604467,60290.0,60289.0,0.001632]
[1728603631386,0.47641498,60290.0,60289.0,0.001632]
[1728603631809,0.52604878,60290.0,60289.0,0.001632]
[1728603632457,0.47641498,60290.0,60289.0,0.001632]
[1728603634440,0.55084067,60290.0,60289.0,0.001632]
[1728603639423,0.68330186,60290.0,60289.0,0.001632]
[1728603639690,1.23243997,60290.0,60289.0,0.001632]
[1728603639915,1.25724854,60290.0,60289.0,0.001632]
[1728603640390,1.13320572,60290.0,60289.0,0.001632]
[1728603645681,1.00831624,60290.0,60289.0,0.001632]
[1728603645889,1.00631624,60290.0,60289.0,0.001632]
[1728603646105,1.00635699,60290.0,60289.0,0.001632]
[1728603646939,0.94335699,60290.0,60289.0,0.001632]
[1728603647151,0.94135699,60290.0,60289.0,0.001632]
[1728603648870,0.88235959,60290.0,60289.0,0.001632]
[1728603650223,0.65903717,60290.0,60289.0,0.001632]
[1728603650447,0.53487011,60290.0,60289.0,0.001632]
[1728603650665,0.45085573,60290.0,60289.0,0.001632]
[1728603650879,0.63418629,60290.0,60289.0,0.001632]
[1728603651557,0.65718629,60290.0,60289.0,0.001632]
[1728603655528,0.65720514,60290.0,60289.0,0.001632]
[1728603656398,0.55786954,60290.0,60289.0,0.001632]
[1728603657053,0.65720937,60290.0,60289.0,0.001632]
[1728603657265,0.55786954,60290.0,60289.0,0.001632]
[1728603659415,0.68203905,60290.0,60289.0,0.001632]
[1728603662370,0.55786954,60290.0,60289.0,0.001632]
[1728603663658,0.55806344,60290.0,60289.0,0.001632]
[1728603666249,0.70722443,60290.0,60289.0,0.001632]
[1728603666728,0.94922715,60290.0,60289.0,0.001632]
[1728603666962,0.97479924,60290.0,60289.0,0.001632]
[1728603667208,1.06879924,60290.0,60289.0,0.001632]
[1728603668288,1.06897854,60290.0,60289.0,0.001632]
[1728603668736,1.05997854,60290.0,60289.0,0.001632]
[1728603668955,1.05697854,60290.0,60289.0,0.001632]
[1728603669397,1.04797854,60290.0,60289.0,0.001632]
[1728603669619,1.06197854,60290.0,60289.0,0.001632]
[1728603669890,1.07597854,60290.0,60289.0,0.001632]
[1728603671788,1.06197854,60290.0,60289.0,0.001632]
[1728603672033,1.07597854,60290.0,60289.0,0.001632]
[1728603672254,1.06197854,60290.0,60289.0,0.001632]
[1728603672523,1.07597854,60290.0,60289.0,0.001632]
[1728603672768,1.07587999,60290.0,60289.0,0.001632]
[1728603675048,1.20076947,60290.0,60289.0,0.001632]
[1728603676162,0.94899051,60290.0,60289.0,0.001632]
[1728603676382,1.19876947,60290.0,60289.0,0.001632]
[1728603676818,1.36862368,60290.0,60289.0,0.001632]
[1728603678908,1.36662368,60290.0,60289.0,0.001632]
[1728603679762,1.36862368,60290.0,60289.0,0.001632]
[1728603680526,0.974842,60290.0,60289.0,0.001632]
[1728603680729,0.79133122,60290.0,60289.0,0.001632]
[1728603681017,0.79133122,60290.0,60289.0,0.082832]
[1728603681232,0.64214419,60290.0,60289.0,0.082832]
[1728603682097,0.64209429,60290.0,60289.0,0.082832]
[1728603682514,0.66509429,60290.0,60289.0,0.082832]
[1728603686365,0.56509429,60290.0,60289.0,0.082832]
[1728603686574,0.56509429,60290.0,60289.0,0.182632]
[1728603691378,0.56506969,60290.0,60289.0,0.182632]
[1728603694113,0.54206969,60290.0,60289.0,0.182632]
[1728603694329,0.28381672,60290.0,60289.0,0.182632]
[1728603694544,0.28381768,60290.0,60289.0,0.182632]
[1728603694974,0.26981768,60290.0,60289.0,0.182632]
[1728603695187,0.40509568,60290.0,60289.0,0.182632]
[1728603695411,0.41209568,60290.0,60289.0,0.182632]
[1728603695623,0.42009568,60290.0,60289.0,0.182632]
[1728603696120,0.42009069,60290.0,60289.0,0.182632]
[1728603697007,0.26381269,60290.0,60289.0,0.182632]
[1728603697436,0.26881269,60290.0,60289.0,0.182632]
[1728603697655,0.0249382,60290.0,60289.0,0.331912]
[1728603697875,0.0249382,60290.0,60289.0,0.182632]
[1728603698092,0.0249382,60290.0,60289.0,0.331912]
[1728603698334,0.0249382,60290.0,60289.0,0.182632]
[1728603698564,0.518119,60290.0,60289.0,0.182632]
[1728603698784,0.92403184,60290.0,60289.0,0.082832]
[1728603699000,0.79975651,60290.0,60289.0,0.082832]
[1728603699253,0.79975651,60290.0,60289.0,0.001632]
[1728603699486,0.67486703,60290.0,60289.0,0.001632]
[1728603703872,0.66986703,60290.0,60289.0,0.001632]
[1728603704060,0.67986703,60290.0,60289.0,0.001632]
[1728603704271,0.69219513,60290.0,60289.0,0.001632]
[1728603704584,0.68419513,60290.0,60289.0,0.001632]
[1728603704803,0.69819513,60290.0,60289.0,0.001632]
[1728603705702,0.82308461,60290.0,60289.0,0.001632]
[1728603706392,0.69819513,60290.0,60289.0,0.001632]
[1728603706615,0.79819513,60290.0,60289.0,0.001632]
[1728603707819,0.92308461,60290.0,60289.0,0.001632]
[1728603708042,0.92508461,60290.0,60289.0,0.001632]
[1728603708263,1.074215,60290.0,60289.0,0.001632]
[1728603708468,0.92308461,60290.0,60289.0,0.001632]
[1728603709959,0.92312666,60290.0,60289.0,0.001632]
[1728603711575,0.89912666,60290.0,60289.0,0.001632]
[1728603712023,0.91312666,60290.0,60289.0,0.001632]
[1728603713077,0.92712666,60290.0,60289.0,0.001632]
[1728603714033,0.6773477,60290.0,60289.0,0.001632]
[1728603714250,0.92712666,60290.0,60289.0,0.001632]
[1728603714667,0.92713845,60290.0,60289.0,0.001632]
[1728603715740,0.92913845,60290.0,60289.0,0.001632]
[1728603716700,0.92713845,60290.0,60289.0,0.001632]
[1728603717062,0.97929874,60290.0,60289.0,0.001632]
[1728603717258,0.92713845,60290.0,60289.0,0.001632]
[1728603718482,0.92913845,60290.0,60289.0,0.001632]
[1728603718691,0.92713845,60290.0,60289.0,0.001632]
[1728603720195,0.92913845,60290.0,60289.0,0.001632]
[1728603721027,0.92713845,60290.0,60289.0,0.001632]
[1728603721230,0.80224897,60290.0,60289.0,0.001632]
[1728603721430,0.61874308,60290.0,60289.0,0.001632]
[1728603722944,0.4938536,60290.0,60289.0,0.081632]
[1728603723148,0.61874308,60290.0,60289.0,0.081632]
[1728603723565,0.60641498,60290.0,60289.0,0.081632]
[1728603724504,0.4585255,60290.0,60289.0,0.081632]
[1728603725612,0.64211021,60290.0,60289.0,0.081632]
[1728603726475,0.4585255,60290.0,60289.0,0.081632]
[1728603726747,0.64212196,60290.0,60289.0,0.081632]
[1728603727173,0.66512196,60290.0,60289.0,0.081632]
[1728603730885,0.67749098,60290.0,60289.0,0.081632]
[1728603732128,0.67749098,60290.0,60289.0,0.001632]
[1728603733578,0.80238046,60290.0,60289.0,0.001632]
[1728603733800,0.95159496,60290.0,60289.0,0.001632]
[1728603733954,0.80238046,60290.0,60289.0,0.001632]
[1728603734219,0.90259694,60290.0,60289.0,0.001632]
[1728603734397,1.07045656,60290.0,60289.0,0.001632]
[1728603734595,0.1493,60281.0,60280.0,0.001632]
[1728603734841,0.79994873,60281.0,60280.0,0.001632]
[1728603734993,0.249318,60274.0,60273.0,0.24974609]
[1728603735213,0.75011324,60274.0,60273.0,0.24974609]
[1728603735576,0.172323,60272.0,60265.0,0.0812]
[1728603735782,0.53825204,60272.0,60265.0,0.0812]
[1728603736213,0.68735871,60272.0,60265.0,0.0812]
[1728603736421,0.85680141,60272.0,60265.0,0.0812]
[1728603736840,0.70769474,60272.0,60265.0,0.0812]
[1728603737042,0.95680141,60272.0,60265.0,0.0812]
[1728603737280,0.82169474,60272.0,60265.0,0.0812]
[1728603737714,0.82369474,60272.0,60265.0,0.0812]
[1728603738180,0.83769474,60272.0,60265.0,0.0812]
[1728603739434,0.82369474,60272.0,60265.0,0.0812]
[1728603739640,0.83769474,60272.0,60265.0,0.0812]
[1728603739848,0.83569474,60272.0,60265.0,0.0812]
[1728603740471,0.82169474,60272.0,60265.0,0.0812]
[1728603740683,0.80769474,60272.0,60265.0,0.0812]
[1728603740884,0.82169474,60272.0,60265.0,0.0812]
[1728603741114,0.83569474,60272.0,60265.0,0.0812]
[1728603741528,0.82169474,60272.0,60265.0,0.0812]
[1728603741730,0.83769474,60272.0,60265.0,0.0812]
[1728603741986,0.96176548,60272.0,60265.0,0.0812]
[1728603742205,0.83769474,60272.0,60265.0,0.0812]
[1728603742405,0.83569474,60272.0,60265.0,0.0812]
[1728603742633,0.83769474,60272.0,60265.0,0.0812]
[1728603742901,0.96258422,60272.0,60264.0,0.001634]
[1728603743146,0.83769474,60272.0,60264.0,0.001634]
[1728603743631,0.96258422,60272.0,60264.0,0.001634]
[1728603745653,0.83769474,60272.0,60264.0,0.001634]
[1728603749213,0.96165401,60272.0,60264.0,0.001634]
[1728603749859,0.94765401,60272.0,60264.0,0.001634]
[1728603750081,0.93365401,60272.0,60264.0,0.001634]
[1728603750285,0.94765401,60272.0,60264.0,0.001634]
[1728603750710,0.93365401,60272.0,60264.0,0.001634]
[1728603750943,0.94858422,60272.0,60264.0,0.001634]
[1728603751407,0.96258422,60272.0,60264.0,0.001634]
[1728603751624,0.125,60271.0,60270.0,0.00141423]
[1728603751850,0.9215306,60271.0,60270.0,0.00141423]
[1728603752105,1.08366812,60271.0,60270.0,0.00141423]
[1728603752533,0.52211896,60265.0,60264.0,0.001634]